[Event "Grand Prix Romania 1st Stage 2024"]
[Site "Bucuresti"]
[Date "2024.03.23"]
[Round "4.24"]
[White "Pisu, Robert-Daniel"]
[Black "Costachi, Mihnea"]
[Result "0-1"]
[ECO "A49"]
[WhiteElo "2154"]
[BlackElo "2470"]
[Annotator "TA"]
[PlyCount "86"]
[EventDate "2024.03.20"]
[EventType "swiss"]
[EventCountry "ROU"]
[SourceTitle "playchess.com"]
[Source "ChessBase"]
[SourceQuality "1"]
[TimeControl "900+5"]

{[%evp 14,86,38,22,29,0,0,0,1,-6,-16,-22,0,0,0,0,23,22,40,33,26,32,45,60,66,60,56,61,60,58,41,55,51,37,52,45,109,-23,-22,-6,-23,-33,-17,-105,-50,-99,-39,-77,-50,-199,-176,-214,-189,-232,-234,-220,-202,-262,-270,-292,-292,-270,-77,-83,0,-249,-278,-279,-180,-974,-970,-29982,-29983,-29993,-29994]} 1. d4 {[%emt 0:00:02]} Nf6 {[%emt 0:00:02]} 2. Nf3 {[%emt 0:00:03]} g6 {[%emt 0:00:01]} 3. g3 {[%emt 0:00:05]} Bg7 {[%emt 0:00:01]} 4. Bg2 {[%emt 0:00:01]} O-O {[%emt 0:00:03]} 5. O-O {[%emt 0:00:02]} d6 {[%emt 0:00:02]} 6. Re1 {[%emt 0:00:08]} Nc6 {[%emt 0:00:26]} 7. e4 {[%emt 0:00:50]} e5 {[%emt 0:00:01]} 8. c3 {[%emt 0:00:51]} Re8 {[%emt 0:00:44]} 9. dxe5 {[%emt 0:00:27]} Nxe5 {[%emt 0:00:11]} 10. Nxe5 {[%emt 0:00:16]} dxe5 {[%emt 0:00:02] Die Stellung ist ausgeglichen.} 11. h3 {[%emt 0:04:10]} Be6 {[%emt 0:00:16]} 12. Be3 {[%emt 0:00:15]} Qe7 {[%emt 0:01:13]} 13. Qc2 {[%emt 0:00:25]} h5 {[%emt 0:00:17]} 14. Nd2 {[%emt 0:01:03]} Qf8 {[%emt 0:00:26]} 15. Nf3 {[%emt 0:00:45]} Nd7 {[%emt 0:00:04]} 16. Rad1 {[%emt 0:00:54]} Bh6 {[%emt 0:00:04]} 17. Ng5 {[%emt 0:00:18] Droht Nxe6 und aus.} Bxg5 {[%emt 0:00:18]} 18. Bxg5 {[%emt 0:00:01]} f6 {[%emt 0:00:12]} 19. Be3 {[%emt 0:00:22]} Red8 {[%emt 0:00:18]} 20. f4 {[%emt 0:00:54]} Bf7 {[%emt 0:02:20]} 21. Rf1 {[%emt 0:01:24]} Qe7 {[%emt 0:00:06]} 22. b3 {[%emt 0:00:57]} a5 {[%emt 0:00:16]} 23. Qf2 {[%emt 0:00:18]} Kg7 {[%emt 0:00:31]} 24. h4 {[%emt 0:01:22]} a4 {[%emt 0:00:46]} (24... b6 $14) 25. Bh3 {[%emt 0:00:24]} ({Besser ist} 25. fxe5 $1 $16 Nxe5 26. Bc5) 25... exf4 {[%emt 0:00:08]} 26. gxf4 {[%emt 0:00:16]} axb3 {[%emt 0:00:07]} 27. axb3 {[%emt 0:00:08]} Bxb3 {[%emt 0:00:09]} 28. Rb1 {[%emt 0:00:32]} (28. Rd4 $11) 28... Bc4 {[%emt 0:01:29]} (28... Ra2 $17 29. Qg3 Bc2) 29. Rfd1 {[%emt 0:00:01]} (29. Rfe1 $1 $15) 29... b5 {[%emt 0:00:04]} (29... Ra2 $17 30. Qg3 Qxe4) 30. e5 {[%emt 0:00:05]} f5 {[%emt 0:00:53]} (30... fxe5 {wäre vielleicht verwirrender.} 31. f5 Nf6 32. Qg2 Rxd1+ 33. Rxd1 Rg8) 31. e6 {[%emt 0:00:14]} Qxe6 {[%emt 0:00:44]} ({Jedoch nicht} 31... Bxe6 32. Rxb5 Kg8 33. Qg3 $17) 32. Bd4+ {[%emt 0:00:00]} Kh7 {[%emt 0:00:05]} 33. Re1 {[%emt 0:00:02]} Qf7 {[%emt 0:00:03]} 34. Bg2 {[%emt 0:00:08]} Ra2 {[%emt 0:00:24]} 35. Qg3 {[%emt 0:00:10]} c5 $1 {[%emt 0:00:40]} 36. Qg5 {[%emt 0:00:01] [#]} Re8 {[%emt 0:00:01]} 37. Bf2 {[%emt 0:00:10]} Ree2 $2 {[%emt 0:00:58]} (37... Nf8 $19 {und Schwarz behält klar die Oberhand.} 38. Rxe8 Qxe8) 38. Rxe2 $17 {[%emt 0:00:02]} Bxe2 {[%emt 0:00:01]} (38... Rxe2 $17 39. Qd8 Re8) 39. Bc6 $2 {[%emt 0:00:06] [#]} (39. Qd8 $1 $11) 39... Nf6 $1 $19 {[%emt 0:00:07]} 40. Bxc5 {[%emt 0:00:06][%cal Oc5d4]} Bd3 {[%emt 0:01:30]} 41. Bd4 $2 {[%emt 0:00:04]} (41. Re1 Be4 42. Bxe4 Nxe4 43. Qd8) 41... Bxb1 {[%emt 0:00:14]} 42. Bxf6 {[%emt 0:00:01]} Qb3 {[%emt 0:00:32][%cal Rb3d1]} 43. Bf3 {[%emt 0:00:10]} Be4 {[%emt 0:00:17] Gewichteter Fehlerwert: Weiß=0.76/Schwarz=0.24 (präzise) .  Verlustzug:     	Weiß=1     	---        Gewinn verpasst:   	---       	Schwarz=1     Fehler:       	Weiß=5     	Schwarz=4     Ungenau:       	Weiß=3     	Schwarz=2     OK:         	Weiß=8     	Schwarz=8     Bester:       	Weiß=1     	Schwarz=2     Stark:        	---       	Schwarz=2} 0-1

[Event "Grand Prix Romania 1st Stage 2024"]
[Site "Bucuresti"]
[Date "2024.03.23"]
[Round "4.25"]
[White "Bulmaga, Irina"]
[Black "Cosma, Elena-Luminita"]
[Result "1-0"]
[ECO "C10"]
[WhiteElo "2429"]
[BlackElo "2238"]
[Annotator "TA"]
[PlyCount "57"]
[EventDate "2024.03.20"]
[EventType "swiss"]
[EventCountry "ROU"]
[SourceTitle "playchess.com"]
[Source "ChessBase"]
[SourceQuality "1"]
[TimeControl "900+5"]

{[%evp 9,57,27,18,16,17,6,10,4,14,1,1,-21,0,6,7,7,19,15,20,14,28,29,31,0,2,0,18,15,39,15,32,29,50,0,0,0,54,63,70,70,77,79,67,76,70,58,320,317,506,510]} 1. e4 {[%emt 0:00:03]} e6 {[%emt 0:00:01]} 2. d4 {[%emt 0:00:02]} d5 {[%emt 0:00:01]} 3. Nc3 {[%emt 0:00:03]} h6 {[%emt 0:00:02]} 4. a3 {[%emt 0:00:11]} dxe4 {[%emt 0:00:19]} 5. Nxe4 {[%emt 0:00:03]} Nf6 {[%emt 0:00:02]} 6. Nxf6+ {[%emt 0:00:10]} Qxf6 {[%emt 0:00:02]} 7. Nf3 {[%emt 0:00:03]} Bd6 {[%emt 0:00:37]} 8. Bd3 {[%emt 0:00:14] The position is equal.} Bd7 {[%emt 0:00:01]} 9. Qe2 {[%emt 0:01:47]} Bc6 {[%emt 0:00:10]} 10. Bd2 {[%emt 0:00:30]} Nd7 {[%emt 0:01:36]} 11. Be4 {[%emt 0:00:49]} Bxe4 {[%emt 0:00:20]} 12. Qxe4 {[%emt 0:00:03]} c6 {[%emt 0:00:31]} 13. O-O {[%emt 0:00:41]} O-O {[%emt 0:00:21]} 14. Rfe1 {[%emt 0:00:12]} Rad8 {[%emt 0:01:52]} 15. c4 {[%emt 0:01:01]} Bc7 {[%emt 0:02:54]} 16. b4 {[%emt 0:00:50]} Rfe8 {[%emt 0:01:25]} 17. Bc3 {[%emt 0:01:23]} Qf4 {[%emt 0:00:42]} 18. Qe2 {[%emt 0:00:05]} Nf6 {[%emt 0:00:15]} 19. g3 {[%emt 0:00:55]} Qf5 {[%emt 0:00:18]} 20. Kg2 {[%emt 0:00:06]} b5 {[%emt 0:00:33]} 21. Ne5 {[%emt 0:01:49]} ({White should try} 21. Rac1 $14) 21... Bxe5 $11 {[%emt 0:01:22]} 22. dxe5 {[%emt 0:00:03]} Qd3 {[%emt 0:00:29]} (22... Rd3 $1 $11) 23. Rac1 $36 {[%emt 0:00:19][%mdl 2048] Black is under pressure.} Qxe2 {[%emt 0:00:15]} 24. Rxe2 {[%emt 0:00:01]} Nd7 {[%emt 0:00:11] [#]} 25. Bd4 $1 {[%emt 0:01:05] Black is weak on the dark squares} a6 {[%emt 0:00:28]} 26. cxb5 {[%emt 0:00:35]} cxb5 {[%emt 0:00:01]} 27. Rec2 {[%emt 0:00:20] White is more active.} Nb8 $2 {[%emt 0:00:16][%mdl 8192] [#]} (27... Nf8 $14 28. Bb6 Ra8) 28. Bb6 $1 $18 {[%emt 0:00:29]} Rd5 {[%emt 0:00:08]} (28... Rd7 $142 29. Rc8 Rde7) 29. Rc8 {[%emt 0:00:10] Weighted Error Value: White=0.09 (flawless) /Black=0.33.  Loses game:     	---       	Black=1      Mistake:       	White=1     	Black=2      Inaccurate:     	White=1     	Black=1      OK:         	White=8     	Black=10     Best:        	White=1     	---        Strong:       	White=2     	---} 1-0

[Event "Grand Prix Romania 1st Stage 2024"]
[Site "Bucuresti"]
[Date "2024.03.23"]
[Round "4.26"]
[White "Magold, Filip"]
[Black "Mozes, Ervin"]
[Result "1-0"]
[ECO "B01"]
[WhiteElo "2403"]
[BlackElo "1975"]
[Annotator "TA"]
[PlyCount "87"]
[EventDate "2024.03.20"]
[EventType "swiss"]
[EventCountry "ROU"]
[SourceTitle "playchess.com"]
[Source "ChessBase"]
[SourceQuality "1"]
[TimeControl "900+5"]

{[%evp 9,87,34,62,0,12,3,50,11,22,32,35,44,50,44,62,72,108,88,93,88,90,90,102,95,104,104,127,113,141,141,134,119,141,130,125,119,162,153,157,148,152,152,154,156,158,158,154,137,179,161,160,154,247,200,202,202,269,220,320,273,279,303,274,268,302,274,460,441,535,496,447,159,666,663,29993,29994,29994,29995,29995,29996]} 1. e4 {[%emt 0:00:03]} d5 {[%emt 0:00:01]} 2. exd5 {[%emt 0:00:15]} Qxd5 {[%emt 0:00:01]} 3. Nf3 {[%emt 0:00:09]} Nf6 {[%emt 0:00:02]} 4. Nc3 {[%emt 0:00:02]} Qd6 {[%emt 0:00:03]} 5. Bc4 {[%emt 0:00:09]} a6 {[%emt 0:00:08]} 6. a4 {[%emt 0:00:04]} ({White should play} 6. d4 $14) 6... Bf5 {[%emt 0:00:31]} 7. O-O {[%emt 0:00:19]} h6 {[%emt 0:01:05]} (7... e6 $11) 8. b3 {[%emt 0:00:24] White is slightly better.} e6 {[%emt 0:01:31]} 9. Ba3 {[%emt 0:01:34]} Qd8 {[%emt 0:00:22]} 10. Bxf8 {[%emt 0:00:03]} Rxf8 {[%emt 0:00:46]} 11. d4 {[%emt 0:00:08] d5 is the strong threat.} c6 {[%emt 0:00:31]} 12. Re1 {[%emt 0:00:22]} Nd5 {[%emt 0:11:04]} 13. Bxd5 {[%emt 0:01:16]} cxd5 {[%emt 0:00:00]} 14. Ne5 {[%emt 0:00:02]} Nc6 {[%emt 0:00:00]} 15. Nxc6 {[%emt 0:01:02]} bxc6 {[%emt 0:00:00]} 16. a5 {[%emt 0:00:01]} Ke7 {[%emt 0:00:00][%cal Be8e7,Be7f8,Bf8g8,Bg8h8][%mdl 32]} 17. Qd2 {[%emt 0:01:54]} Qd6 {[%emt 0:00:00]} 18. Na4 {[%emt 0:00:18]} Rfb8 {[%emt 0:00:00]} 19. Nc5 {[%emt 0:00:04]} Kf8 {[%emt 0:00:00]} 20. Re3 {[%emt 0:00:05]} Kg8 {[%emt 0:00:00]} 21. Rae1 {[%emt 0:00:13]} Rb5 {[%emt 0:00:00]} 22. b4 {[%emt 0:00:08]} Kh8 {[%emt 0:00:00]} 23. c3 {[%emt 0:00:03]} Qc7 {[%emt 0:00:00]} 24. Re5 {[%emt 0:00:34]} Qd8 {[%emt 0:00:00]} 25. h3 {[%emt 0:00:42]} Ra7 {[%emt 0:00:00]} 26. Qf4 {[%emt 0:00:09]} Rb8 {[%emt 0:00:00]} 27. g4 {[%emt 0:00:25]} Bg6 {[%emt 0:00:00]} 28. Qg3 {[%emt 0:00:04] White is much more active.} Raa8 {[%emt 0:00:00]} 29. f4 {[%emt 0:00:03]} Bh7 {[%emt 0:00:00]} 30. Kh2 {[%emt 0:00:21]} Be4 {[%emt 0:00:00]} (30... Ra7 $16 {was necessary.} 31. h4 Rba8) 31. Nxe4 {[%emt 0:01:28]} dxe4 {[%emt 0:00:00]} 32. R1xe4 {[%emt 0:00:02]} ({Don't do} 32. R5xe4 Rb5 33. Qf3 Qd7) 32... Rc8 {[%emt 0:00:00]} 33. Rc5 {[%emt 0:00:16]} Qf6 {[%emt 0:00:03]} (33... Rab8 $142 34. Qf3 Rb5) 34. f5 {[%emt 0:00:20]} exf5 {[%emt 0:00:37]} 35. Rxf5 {[%emt 0:00:02]} Qg6 {[%emt 0:00:03]} 36. Qe3 {[%emt 0:00:24]} Qd6+ {[%emt 0:00:10]} 37. Kg2 {[%emt 0:00:04]} f6 {[%emt 0:00:07]} (37... Rc7 38. Rfe5 Kh7) 38. Re6 $18 {[%emt 0:00:15]} Qd7 {[%emt 0:00:02]} 39. Re7 {[%emt 0:00:03]} Qd6 {[%emt 0:00:09]} 40. c4 $2 {[%emt 0:01:49]} (40. Qe6 $18 {and White stays clearly on top.} Qxe6 41. Rxe6) 40... Qxb4 {[%emt 0:00:08] [#] A mistake that costs the game.} (40... Rc7 $16 41. Re8+ Rxe8 42. Qxe8+ Kh7) 41. Rxf6 $3 {[%emt 0:00:02][%mdl 512]} Qxc4 {[%emt 0:00:39] [#]} (41... Qxe7 42. Qxe7) 42. Rxh6+ $1 {[%emt 0:02:54][%mdl 512] White mates.} Kg8 {[#]} 43. Rxg7+ $3 {[%emt 0:00:00][%mdl 512]} Kxg7 {[%emt 0:00:05]} 44. Qg5+ {[%emt 0:00:00] Weighted Error Value: White=0.20 (precise) /Black=0.48.  Loses game:     	---       	Black=1      Missed win:     	White=1     	---        Mistake:       	---       	Black=4      Inaccurate:     	White=1     	Black=5      OK:         	White=16    	Black=10     Best:        	White=1     	---        Brilliant:      	White=1     	---} 1-0

[Event "Grand Prix Romania 1st Stage 2024"]
[Site "Bucuresti"]
[Date "2024.03.23"]
[Round "4.27"]
[White "Filev, Georgi"]
[Black "Tusu, Nicolae-Dan"]
[Result "1-0"]
[ECO "B84"]
[WhiteElo "2210"]
[BlackElo "1896"]
[Annotator "RC"]
[PlyCount "61"]
[EventDate "2024.03.20"]
[EventType "swiss"]
[EventCountry "ROU"]
[SourceTitle "playchess.com"]
[Source "ChessBase"]
[SourceQuality "1"]
[TimeControl "900+5"]

1. e4 {[%emt 0:00:04]} c5 {[%emt 0:00:01]} 2. Nf3 {[%emt 0:00:03]} e6 {[%emt 0:00:01]} 3. d4 {[%emt 0:00:03]} cxd4 4. Nxd4 {[%emt 0:00:02]} Nf6 {[%emt 0:00:02]} 5. Nc3 {[%emt 0:00:03]} d6 {[%emt 0:00:01]} 6. Be2 {[%emt 0:00:07]} Nc6 {[%emt 0:00:02]} 7. Be3 {[%emt 0:00:06]} Be7 {[%emt 0:00:05]} 8. O-O {[%emt 0:00:04]} a6 {[%emt 0:00:02]} 9. f4 {[%emt 0:00:04]} Qc7 {[%emt 0:00:01]} 10. Qe1 {[%emt 0:00:08]} Bd7 {[%emt 0:00:18]} 11. Kh1 {[%emt 0:00:07]} Na5 {[%emt 0:00:11]} 12. Rd1 {[%emt 0:00:36]} b5 {[%emt 0:00:10]} 13. a3 {[%emt 0:00:06]} Rc8 {[%emt 0:00:07]} 14. Qg3 {[%emt 0:00:12]} g6 {[%emt 0:00:09]} 15. e5 {[%emt 0:00:33]} Nd5 {[%emt 0:00:33]} 16. Nxd5 {[%emt 0:00:13]} exd5 {[%emt 0:00:03]} 17. Bf3 {[%emt 0:01:33]} Be6 {[%emt 0:00:28]} 18. Nxe6 {[%emt 0:00:44]} fxe6 {[%emt 0:00:03]} 19. Bg4 {[%emt 0:00:10]} Qd7 {[%emt 0:02:52]} 20. exd6 {[%emt 0:03:14]} Qxd6 {[%emt 0:00:27]} 21. Bd4 {[%emt 0:00:20]} Rf8 {[%emt 0:02:29]} 22. Rde1 {[%emt 0:00:39]} Rxc2 {[%emt 0:00:58]} 23. Rxe6 {[%emt 0:01:15]} Qc7 {[%emt 0:02:19]} 24. Rfe1 {[%emt 0:00:30]} Rf7 {[%emt 0:00:14]} 25. Bb6 {[%emt 0:00:26]} Qb7 {[%emt 0:02:03]} 26. Bxa5 {[%emt 0:00:12]} Kf8 {[%emt 0:00:02]} 27. Rxe7 {[%emt 0:00:49]} Rxe7 {[%emt 0:00:14]} 28. Bb4 {[%emt 0:00:01]} Rcc7 {[%emt 0:00:08]} 29. Qh4 {[%emt 0:01:08]} d4 {[%emt 0:00:54]} 30. Qxh7 {[%emt 0:00:30]} d3 {[%emt 0:00:25]} 31. Be6 {[%emt 0:03:38]} 1-0

[Event "Grand Prix Romania 1st Stage 2024"]
[Site "Bucuresti"]
[Date "2024.03.23"]
[Round "4.28"]
[White "Antonica, Dragos-Andrei"]
[Black "Rosca, Mario-Andrei"]
[Result "1-0"]
[ECO "A50"]
[WhiteElo "2366"]
[BlackElo "1817"]
[Annotator "RC"]
[PlyCount "48"]
[EventDate "2024.03.20"]
[EventType "swiss"]
[EventCountry "ROU"]
[SourceTitle "playchess.com"]
[Source "ChessBase"]
[SourceQuality "1"]
[TimeControl "900+5"]

1. c4 {[%emt 0:00:02]} b6 {[%emt 0:00:04]} 2. Nc3 {[%emt 0:00:11]} Bb7 {[%emt 0:00:04]} 3. d4 {[%emt 0:00:51]} Nf6 {[%emt 0:00:06]} 4. Qc2 {[%emt 0:00:46]} d5 {[%emt 0:00:34]} 5. cxd5 {[%emt 0:00:08]} Nxd5 {[%emt 0:00:03]} 6. e4 {[%emt 0:00:22]} Nxc3 {[%emt 0:00:03]} 7. bxc3 {[%emt 0:00:01]} g6 {[%emt 0:00:05]} 8. Nf3 {[%emt 0:00:11]} Bg7 {[%emt 0:00:13]} 9. Bb5+ {[%emt 0:00:34]} c6 {[%emt 0:03:45]} 10. Bd3 {[%emt 0:00:02]} Nd7 {[%emt 0:00:24]} 11. O-O {[%emt 0:00:10]} O-O {[%emt 0:00:51]} 12. Be3 {[%emt 0:00:24]} Qc7 {[%emt 0:01:52]} 13. Rad1 {[%emt 0:01:21]} Rac8 {[%emt 0:00:42]} 14. Qd2 {[%emt 0:00:37]} c5 {[%emt 0:01:32]} 15. Bf4 {[%emt 0:00:50]} e5 {[%emt 0:01:46]} 16. Bg3 {[%emt 0:00:16]} Rfe8 {[%emt 0:00:43]} 17. d5 {[%emt 0:01:10]} f5 {[%emt 0:00:57]} 18. exf5 {[%emt 0:00:52]} Bxd5 {[%emt 0:01:32]} 19. Bb5 {[%emt 0:00:57]} Bxf3 {[%emt 0:00:30]} 20. gxf3 {[%emt 0:00:05]} Rcd8 {[%emt 0:00:52]} 21. Bxd7 {[%emt 0:00:05]} Rf8 {[%emt 0:00:06]} 22. Be6+ {[%emt 0:00:40]} Kh8 {[%emt 0:00:02]} 23. Qg5 {[%emt 0:00:03]} gxf5 {[%emt 0:00:07]} 24. Bxf5 {[%emt 0:00:17]} Rde8 {[%emt 0:00:12]} 1-0

[Event "Grand Prix Romania 1st Stage 2024"]
[Site "Bucuresti"]
[Date "2024.03.23"]
[Round "4.29"]
[White "Dragomirescu, Angela"]
[Black "Serban, Cristian-Stefan"]
[Result "0-1"]
[ECO "A07"]
[WhiteElo "2111"]
[BlackElo "2309"]
[Annotator "RC"]
[PlyCount "144"]
[EventDate "2024.03.20"]
[EventType "swiss"]
[EventCountry "ROU"]
[SourceTitle "playchess.com"]
[Source "ChessBase"]
[SourceQuality "1"]
[TimeControl "900+5"]

1. Nf3 {[%emt 0:00:03]} d5 {[%emt 0:00:01]} 2. g3 {[%emt 0:00:01]} Nf6 {[%emt 0:00:03]} 3. Bg2 {[%emt 0:00:00]} c6 {[%emt 0:00:02]} 4. O-O {[%emt 0:00:02]} Bg4 {[%emt 0:00:02]} 5. d3 {[%emt 0:00:31]} Nbd7 {[%emt 0:00:02]} 6. Nbd2 {[%emt 0:00:00]} e5 {[%emt 0:00:02]} 7. e4 {[%emt 0:00:21]} dxe4 {[%emt 0:01:04]} 8. dxe4 {[%emt 0:00:05]} h6 {[%emt 0:00:08]} 9. h3 {[%emt 0:00:15]} Be6 {[%emt 0:00:02]} 10. Qe2 {[%emt 0:00:06]} Bc5 {[%emt 0:02:07]} 11. b3 {[%emt 0:00:33]} Qc7 {[%emt 0:02:24]} 12. Bb2 {[%emt 0:00:01]} O-O {[%emt 0:00:42]} 13. Nc4 {[%emt 0:00:27]} Bxc4 {[%emt 0:00:03]} 14. Qxc4 {[%emt 0:00:01]} Rfe8 {[%emt 0:00:02]} 15. Rad1 {[%emt 0:01:56]} b5 {[%emt 0:00:05]} 16. Qe2 {[%emt 0:00:03]} a5 {[%emt 0:00:18]} 17. Nh4 {[%emt 0:03:51]} a4 {[%emt 0:00:38]} 18. Bc3 {[%emt 0:00:52]} Kh7 {[%emt 0:01:20]} 19. Nf5 {[%emt 0:00:13]} g6 {[%emt 0:01:29]} 20. Ne3 {[%emt 0:00:02]} Bb6 {[%emt 0:00:12]} 21. Rd2 {[%emt 0:02:17]} Nc5 {[%emt 0:00:12]} 22. Ng4 {[%emt 0:00:12]} Nxg4 {[%emt 0:00:05]} 23. Qxg4 {[%emt 0:00:07]} Ne6 {[%emt 0:00:03]} 24. Rfd1 {[%emt 0:00:45]} axb3 {[%emt 0:00:56]} 25. axb3 {[%emt 0:00:37]} Rad8 {[%emt 0:00:18]} 26. h4 {[%emt 0:01:05]} h5 {[%emt 0:00:21]} 27. Qf3 {[%emt 0:00:38]} Bd4 {[%emt 0:00:02]} 28. Bh3 {[%emt 0:00:36]} Bxc3 {[%emt 0:00:16]} 29. Rxd8 {[%emt 0:01:24]} Rxd8 {[%emt 0:00:01]} 30. Rxd8 {[%emt 0:00:04]} Nxd8 {[%emt 0:00:31]} 31. Qxc3 {[%emt 0:00:02]} Qd6 {[%emt 0:00:02]} 32. b4 {[%emt 0:00:21]} Kg8 {[%emt 0:00:23]} 33. Kg2 {[%emt 0:00:08]} Kf8 {[%emt 0:00:03]} 34. Kg1 {[%emt 0:00:06]} Ke7 {[%emt 0:00:02]} 35. Bf1 {[%emt 0:00:05]} Ne6 {[%emt 0:00:03]} 36. Qd3 {[%emt 0:00:03]} Qxb4 {[%emt 0:00:08]} 37. c3 {[%emt 0:00:02]} Qd6 {[%emt 0:00:15]} 38. Qe3 {[%emt 0:00:04]} Nc5 {[%emt 0:00:07]} 39. Be2 {[%emt 0:00:08]} Na4 {[%emt 0:00:38]} 40. Qa7+ {[%emt 0:00:03]} Qd7 {[%emt 0:00:02]} 41. Qe3 {[%emt 0:00:05]} Qd6 {[%emt 0:00:28]} 42. Qa7+ {[%emt 0:00:06]} Kf6 {[%emt 0:00:05]} 43. Qe3 {[%emt 0:00:04]} Kg7 {[%emt 0:00:09]} 44. Kg2 {[%emt 0:00:03]} Qc5 {[%emt 0:00:07]} 45. Qxc5 {[%emt 0:00:08]} Nxc5 {[%emt 0:00:01]} 46. Kf3 {[%emt 0:00:00]} Na4 {[%emt 0:00:14]} 47. c4 {[%emt 0:00:04]} b4 {[%emt 0:00:34]} 48. Bd1 {[%emt 0:00:10]} Nb6 {[%emt 0:00:02]} 49. Bb3 {[%emt 0:00:10]} Kf6 {[%emt 0:00:06]} 50. Ke3 {[%emt 0:00:02]} Ke7 {[%emt 0:00:07]} 51. Kd3 {[%emt 0:00:09]} c5 {[%emt 0:00:02]} 52. Ke3 {[%emt 0:00:02]} Nd7 {[%emt 0:00:09]} 53. Ba4 {[%emt 0:00:02]} Nf8 {[%emt 0:00:01]} 54. f4 {[%emt 0:00:05]} Kf6 {[%emt 0:00:09]} 55. Be8 {[%emt 0:00:03]} Ke7 {[%emt 0:01:02]} 56. Ba4 {[%emt 0:00:01]} Ne6 {[%emt 0:00:01]} 57. fxe5 {[%emt 0:00:16]} Nd4 {[%emt 0:00:04]} 58. Kd3 {[%emt 0:00:05]} Nf3 {[%emt 0:00:05]} 59. Ke3 {[%emt 0:00:07]} Nxe5 {[%emt 0:00:02]} 60. Bb3 {[%emt 0:00:02]} Nc6 {[%emt 0:00:09]} 61. Ba4 {[%emt 0:00:06]} Nd4 {[%emt 0:00:01]} 62. Kd3 {[%emt 0:00:02]} f6 {[%emt 0:00:17]} 63. Bd1 {[%emt 0:00:08]} Ke6 {[%emt 0:00:04]} 64. g4 {[%emt 0:00:02]} hxg4 65. Bxg4+ {[%emt 0:00:01]} Ke5 {[%emt 0:00:04]} 66. Bd1 {[%emt 0:00:13]} Kf4 {[%emt 0:00:04]} 67. h5 {[%emt 0:00:03]} gxh5 {[%emt 0:00:02]} 68. Bxh5 {[%emt 0:00:00]} Nc6 {[%emt 0:00:04]} 69. Bd1 {[%emt 0:00:13]} Ne5+ {[%emt 0:00:02]} 70. Kc2 {[%emt 0:00:02]} Nxc4 {[%emt 0:00:02]} 71. Kb3 {[%emt 0:00:00]} Ne3 {[%emt 0:00:04]} 72. Be2 {[%emt 0:00:03]} Kxe4 {[%emt 0:00:02]} 0-1

[Event "Grand Prix Romania 1st Stage 2024"]
[Site "Bucuresti"]
[Date "2024.03.23"]
[Round "4.31"]
[White "Petrescu, Georgian-Dorin"]
[Black "Nastore, Pavel-Alexandru"]
[Result "1-0"]
[ECO "D02"]
[WhiteElo "2064"]
[BlackElo "2182"]
[Annotator "RC"]
[PlyCount "67"]
[EventDate "2024.03.20"]
[EventType "swiss"]
[EventCountry "ROU"]
[SourceTitle "playchess.com"]
[Source "ChessBase"]
[SourceQuality "1"]
[TimeControl "900+5"]

1. d4 {[%emt 0:00:03]} Nf6 {[%emt 0:00:02]} 2. Nf3 {[%emt 0:00:03]} e6 {[%emt 0:00:01]} 3. Bg5 {[%emt 0:00:06]} d5 {[%emt 0:00:15]} 4. c3 {[%emt 0:00:22]} Be7 {[%emt 0:00:04]} 5. Nbd2 {[%emt 0:00:07]} b6 {[%emt 0:00:12]} 6. Ne5 {[%emt 0:00:11]} Bb7 {[%emt 0:00:15]} 7. e3 {[%emt 0:00:09]} a6 {[%emt 0:00:16]} 8. Bd3 {[%emt 0:00:13]} c5 {[%emt 0:00:12]} 9. f4 {[%emt 0:00:17]} O-O {[%emt 0:02:36]} 10. O-O {[%emt 0:00:25]} Ne4 {[%emt 0:00:24]} 11. Bxe7 {[%emt 0:00:28]} Qxe7 {[%emt 0:00:02]} 12. Bxe4 {[%emt 0:01:12]} dxe4 {[%emt 0:00:01]} 13. Qh5 {[%emt 0:01:00]} f6 {[%emt 0:01:58]} 14. Ng4 {[%emt 0:00:36]} g6 {[%emt 0:00:46]} 15. Qh4 {[%emt 0:01:05]} Qg7 {[%emt 0:02:58]} 16. Nh6+ {[%emt 0:01:39]} Kh8 {[%emt 0:00:01]} 17. g4 {[%emt 0:00:26]} Nd7 {[%emt 0:02:02]} 18. Kh1 {[%emt 0:01:13]} e5 {[%emt 0:01:36]} 19. dxe5 {[%emt 0:01:00]} fxe5 {[%emt 0:00:03]} 20. g5 {[%emt 0:00:58]} exf4 {[%emt 0:00:10]} 21. Rxf4 {[%emt 0:00:10]} Ne5 {[%emt 0:00:27]} 22. Rf6 {[%emt 0:01:19]} Nd7 {[%emt 0:02:17]} 23. Raf1 {[%emt 0:01:22]} Nxf6 {[%emt 0:00:10]} 24. gxf6 {[%emt 0:00:20]} Qd7 {[%emt 0:00:09]} 25. f7 {[%emt 0:02:26]} Qd8 26. Qf4 {[%emt 0:00:00]} Qe7 {[%emt 0:00:04]} 27. Nc4 {[%emt 0:00:00]} Rad8 {[%emt 0:00:11]} 28. Ne5 {[%emt 0:00:00]} Rd5 {[%emt 0:00:02]} 29. Nhg4 {[%emt 0:00:00]} Bc8 {[%emt 0:00:07]} 30. Qh6 {[%emt 0:00:09]} Rxe5 {[%emt 0:00:05]} 31. Nxe5 {[%emt 0:00:02]} Qd6 {[%emt 0:00:07]} 32. Rf6 {[%emt 0:00:16]} Qd1+ {[%emt 0:00:02]} 33. Kg2 {[%emt 0:00:01]} Qe2+ {[%emt 0:00:02]} 34. Rf2 {[%emt 0:00:02]} 1-0